[Event "AUT-ch U16-Open 2025"]
[Site "Fuerstenfeld"]
[Date "2025.04.14"]
[Round "3.1"]
[White "Stickler, Florentin"]
[Black "Ortner, Sebastian"]
[Result "1-0"]
[Annotator "RC"]
[ECO "C76"]
[WhiteElo "2189"]
[BlackElo "1925"]
[PlyCount "113"]
[EventDate "2025.04.12"]
[EventType "swiss"]
[EventCountry "AUT"]
[SourceTitle "playchess.com"]
[Source "ChessBase"]
[SourceQuality "1"]
[TimeControl "5400+30"]

1. e4 {[%emt 0:00:02]} e5 {[%emt 0:00:04]} 2. Nf3 {[%emt 0:00:04]} Nc6 {[%emt 0:00:05]} 3. Bb5 {[%emt 0:00:03]} a6 {[%emt 0:00:06]} 4. Ba4 {[%emt 0:00:04]} d6 {[%emt 0:00:12]} 5. O-O {[%emt 0:00:55]} Bd7 {[%emt 0:00:28]} 6. c3 {[%emt 0:00:56]} g6 {[%emt 0:00:33]} 7. d4 {[%emt 0:00:08]} Bg7 {[%emt 0:00:22]} 8. d5 {[%emt 0:02:16]} Nce7 {[%emt 0:02:59]} 9. Bxd7+ {[%emt 0:00:46]} Qxd7 {[%emt 0:00:30]} 10. c4 {[%emt 0:00:22]} h6 {[%emt 0:02:07]} 11. Nc3 {[%emt 0:00:50]} f5 {[%emt 0:02:27]} 12. Ne1 {[%emt 0:08:00]} f4 {[%emt 0:06:06]} 13. Nd3 {[%emt 0:02:13]} Nf6 {[%emt 0:04:32]} 14. c5 {[%emt 0:01:17]} O-O {[%emt 0:03:26]} 15. f3 {[%emt 0:02:38]} Kh7 {[%emt 0:06:59]} 16. b4 {[%emt 0:04:55]} g5 {[%emt 0:11:29]} 17. Qc2 {[%emt 0:15:49]} h5 {[%emt 0:03:01]} 18. Bb2 {[%emt 0:07:36]} Ng6 {[%emt 0:08:05]} 19. a4 {[%emt 0:05:25]} g4 {[%emt 0:04:36]} 20. b5 {[%emt 0:04:55]} gxf3 {[%emt 0:06:25]} 21. gxf3 {[%emt 0:00:11]} Nh4 {[%emt 0:03:49]} 22. Nxf4 {[%emt 0:02:34]} exf4 {[%emt 0:00:04]} 23. e5+ {[%emt 0:00:05]} Kh8 {[%emt 0:00:11]} 24. exf6 {[%emt 0:00:32]} Bxf6 {[%emt 0:00:08]} 25. Kh1 {[%emt 0:00:49]} Be5 {[%emt 0:10:35]} 26. Ne4 {[%emt 0:02:50]} Qf5 {[%emt 0:02:13]} 27. Qf2 {[%emt 0:00:49]} Nxf3 {[%emt 0:04:17]} 28. Qxf3 {[%emt 0:00:15]} Bxb2 {[%emt 0:00:07]} 29. Rab1 {[%emt 0:00:50]} Bd4 {[%emt 0:01:36]} 30. cxd6 {[%emt 0:03:34]} cxd6 {[%emt 0:00:39]} 31. Nxd6 {[%emt 0:00:33]} Qh7 {[%emt 0:03:04]} 32. bxa6 {[%emt 0:03:01]} bxa6 {[%emt 0:01:57]} 33. Ne4 {[%emt 0:00:43]} Qf5 {[%emt 0:02:31]} 34. Rfd1 {[%emt 0:03:24]} Be3 {[%emt 0:00:31]} 35. Nd6 {[%emt 0:04:33]} Qg4 {[%emt 0:03:46]} 36. Qe4 {[%emt 0:00:58]} f3 {[%emt 0:00:43]} 37. Qe5+ {[%emt 0:00:21]} Qg7 {[%emt 0:01:00]} 38. Qxh5+ {[%emt 0:00:21]} Kg8 {[%emt 0:00:23]} 39. Rg1 {[%emt 0:01:06]} Bxg1 {[%emt 0:00:04]} 40. Rxg1 {[%emt 0:00:04]} Qxg1+ {[%emt 0:00:11]} 41. Kxg1 {[%emt 0:00:05]} f2+ {[%emt 0:00:12]} 42. Kf1 {[%emt 0:00:02]} Ra7 {[%emt 0:00:08]} 43. Nf5 {[%emt 0:00:14]} Rb7 {[%emt 0:01:39]} 44. Qg6+ {[%emt 0:02:44]} Kh8 {[%emt 0:00:06]} 45. Nd6 {[%emt 0:00:27]} Rg7 {[%emt 0:00:48]} 46. Qh5+ {[%emt 0:01:12]} Kg8 {[%emt 0:00:40]} 47. Nf5 {[%emt 0:00:37]} Rb7 {[%emt 0:00:14]} 48. Qg6+ {[%emt 0:00:43]} Kh8 {[%emt 0:00:12]} 49. Qh6+ {[%emt 0:00:31]} Kg8 {[%emt 0:00:09]} 50. Qe6+ {[%emt 0:00:05]} Kh8 {[%emt 0:00:21]} 51. Qe4 {[%emt 0:00:16]} Rh7 {[%emt 0:02:28]} 52. d6 {[%emt 0:00:42]} Rhf7 {[%emt 0:01:16]} 53. Ne7 {[%emt 0:01:04]} Rd8 {[%emt 0:01:16]} 54. Qe5+ {[%emt 0:00:21]} Kh7 {[%emt 0:00:14]} 55. Qh5+ {[%emt 0:00:04]} Kg7 {[%emt 0:00:11]} 56. Qg6+ {[%emt 0:00:04]} Kf8 {[%emt 0:00:07]} 57. Qg8# {[%emt 0:00:36]} 1-0

[Event "AUT-ch U16-Open 2025"]
[Site "Fuerstenfeld"]
[Date "2025.04.14"]
[Round "3.2"]
[White "Martinovic, David"]
[Black "Benedikt, Noah"]
[Result "0-1"]
[Annotator "RC"]
[ECO "C07"]
[WhiteElo "1968"]
[BlackElo "1976"]
[PlyCount "120"]
[EventDate "2025.04.12"]
[EventType "swiss"]
[EventCountry "AUT"]
[SourceTitle "playchess.com"]
[Source "ChessBase"]
[SourceQuality "1"]
[TimeControl "5400+30"]

1. e4 {[%emt 0:00:02]} e6 {[%emt 0:00:16]} 2. d4 {[%emt 0:00:07]} d5 {[%emt 0:00:07]} 3. Nd2 {[%emt 0:00:06]} c5 {[%emt 0:00:07]} 4. exd5 {[%emt 0:00:06]} Qxd5 {[%emt 0:00:09]} 5. Ngf3 {[%emt 0:00:08]} cxd4 {[%emt 0:00:07]} 6. Bc4 {[%emt 0:00:08]} Qd6 {[%emt 0:00:07]} 7. O-O {[%emt 0:00:27]} Nf6 {[%emt 0:00:08]} 8. Nb3 {[%emt 0:00:29]} a6 {[%emt 0:00:24]} 9. a4 {[%emt 0:06:49]} Qc7 {[%emt 0:07:38]} 10. Qe2 {[%emt 0:05:04]} Be7 {[%emt 0:03:14]} 11. Rd1 {[%emt 0:03:12]} O-O {[%emt 0:00:45]} 12. Rxd4 {[%emt 0:15:02]} Nc6 {[%emt 0:01:52]} 13. Rh4 {[%emt 0:01:15]} Nd5 {[%emt 0:05:15]} 14. Bxd5 {[%emt 0:04:01]} exd5 {[%emt 0:00:22]} 15. Bg5 {[%emt 0:09:48]} f6 {[%emt 0:08:37]} 16. Bf4 {[%emt 0:10:14]} Qd8 {[%emt 0:00:06]} 17. Qd3 {[%emt 0:13:12]} g6 {[%emt 0:08:23]} 18. Nfd4 {[%emt 0:14:50]} Ne5 {[%emt 0:04:35]} 19. Qg3 {[%emt 0:02:40]} f5 {[%emt 0:22:21]} 20. Rh3 {[%emt 0:05:59]} Nc4 {[%emt 0:00:10]} 21. Re1 {[%emt 0:04:06]} Bf6 {[%emt 0:00:27]} 22. Rh6 {[%emt 0:02:28]} Bg7 {[%emt 0:00:49]} 23. Bg5 {[%emt 0:00:27]} Qd6 {[%emt 0:02:59]} 24. Qxd6 {[%emt 0:01:11]} Nxd6 {[%emt 0:00:06]} 25. Rh3 {[%emt 0:00:33]} Ne4 {[%emt 0:00:43]} 26. Bc1 {[%emt 0:00:33]} Bd7 {[%emt 0:02:26]} 27. Rd3 {[%emt 0:00:25]} Rfe8 {[%emt 0:01:49]} 28. f3 {[%emt 0:00:31]} Nd6 {[%emt 0:00:06]} 29. Rxe8+ {[%emt 0:00:28]} Rxe8 {[%emt 0:00:07]} 30. Nc5 {[%emt 0:00:34]} Bxa4 {[%emt 0:05:37]} 31. Bf4 {[%emt 0:00:28]} Nb5 {[%emt 0:00:04]} 32. Nxb5 {[%emt 0:00:33]} Bxb5 {[%emt 0:00:05]} 33. Rxd5 {[%emt 0:00:27]} Bc6 {[%emt 0:02:19]} 34. Rd2 {[%emt 0:00:35]} Bxb2 {[%emt 0:00:14]} 35. Kf2 {[%emt 0:00:27]} g5 {[%emt 0:01:26]} 36. Bxg5 {[%emt 0:00:31]} Bc1 {[%emt 0:00:15]} 37. Rd8 {[%emt 0:00:30]} Bxg5 {[%emt 0:00:08]} 38. Rxe8+ {[%emt 0:00:05]} Bxe8 {[%emt 0:00:04]} 39. Nxb7 {[%emt 0:00:04]} Be7 {[%emt 0:00:13]} 40. Ke3 {[%emt 0:00:35]} Kf7 {[%emt 0:00:53]} 41. g4 {[%emt 0:00:28]} fxg4 {[%emt 0:01:36]} 42. fxg4 {[%emt 0:00:01]} Bb4 {[%emt 0:00:33]} 43. Kd4 {[%emt 0:00:26]} Ke7 {[%emt 0:01:26]} 44. Kc4 {[%emt 0:00:33]} Bc6 {[%emt 0:00:46]} 45. Kxb4 {[%emt 0:00:26]} Bxb7 {[%emt 0:00:05]} 46. Kc5 {[%emt 0:01:29]} Kf6 {[%emt 0:00:10]} 47. Kb6 {[%emt 0:00:50]} Bc8 {[%emt 0:00:09]} 48. h3 {[%emt 0:00:29]} Kg5 {[%emt 0:00:05]} 49. c4 {[%emt 0:00:21]} Kh4 {[%emt 0:00:06]} 50. Kc7 {[%emt 0:00:37]} Be6 {[%emt 0:00:11]} 51. c5 {[%emt 0:00:14]} Kxh3 {[%emt 0:00:05]} 52. g5 {[%emt 0:00:08]} Kh4 {[%emt 0:00:08]} 53. Kd6 {[%emt 0:00:09]} Bg4 {[%emt 0:00:19]} 54. g6 {[%emt 0:00:19]} hxg6 {[%emt 0:00:05]} 55. c6 {[%emt 0:00:05]} a5 {[%emt 0:00:14]} 56. Kc5 {[%emt 0:00:08]} Bc8 {[%emt 0:00:08]} 57. Kb5 {[%emt 0:00:05]} g5 {[%emt 0:00:05]} 58. Kxa5 {[%emt 0:00:06]} g4 {[%emt 0:00:05]} 59. Kb6 {[%emt 0:00:05]} g3 {[%emt 0:00:04]} 60. Kc7 {[%emt 0:00:05]} Bg4 {[%emt 0:00:10]} 0-1

[Event "AUT-ch U16-Open 2025"]
[Site "Fuerstenfeld"]
[Date "2025.04.14"]
[Round "3.3"]
[White "Haselsberger, Armin"]
[Black "Squasi, Ernesto"]
[Result "1/2-1/2"]
[Annotator "RC"]
[ECO "D05"]
[WhiteElo "2004"]
[BlackElo "1904"]
[PlyCount "61"]
[EventDate "2025.04.12"]
[EventType "swiss"]
[EventCountry "AUT"]
[SourceTitle "playchess.com"]
[Source "ChessBase"]
[SourceQuality "1"]
[TimeControl "5400+30"]

1. d4 {[%emt 0:00:36]} Nf6 {[%emt 0:00:05]} 2. Nf3 {[%emt 0:00:28]} e6 {[%emt 0:01:37]} 3. e3 {[%emt 0:00:32]} c5 {[%emt 0:03:04]} 4. Bd3 {[%emt 0:00:48]} d5 {[%emt 0:02:34]} 5. b3 {[%emt 0:00:34]} cxd4 {[%emt 0:01:01]} 6. exd4 {[%emt 0:00:13]} Nc6 {[%emt 0:05:10]} 7. O-O {[%emt 0:01:01]} Be7 {[%emt 0:04:44]} 8. Bb2 {[%emt 0:00:49]} O-O {[%emt 0:01:21]} 9. Nbd2 {[%emt 0:00:51]} b6 {[%emt 0:06:49]} 10. a3 {[%emt 0:01:04]} Bb7 {[%emt 0:01:13]} 11. Qe2 {[%emt 0:01:31]} Rc8 {[%emt 0:05:58]} 12. Ne5 {[%emt 0:01:49]} Qc7 {[%emt 0:03:48]} 13. f4 {[%emt 0:02:15]} Nxe5 {[%emt 0:24:54]} 14. fxe5 {[%emt 0:03:10]} Ne4 {[%emt 0:00:58]} 15. Nf3 {[%emt 0:23:45]} b5 {[%emt 0:09:49]} 16. g3 {[%emt 0:09:15]} Kh8 {[%emt 0:04:14]} 17. Kg2 {[%emt 0:03:31]} a6 {[%emt 0:03:45]} 18. h4 {[%emt 0:00:34]} f5 {[%emt 0:01:11]} 19. Rh1 {[%emt 0:01:28]} f4 {[%emt 0:01:05]} 20. g4 {[%emt 0:07:49]} Ng3 {[%emt 0:00:31]} 21. Qf2 {[%emt 0:00:10]} Nxh1 {[%emt 0:00:04]} 22. Rxh1 {[%emt 0:00:07]} Kg8 {[%emt 0:02:59]} 23. Ng5 {[%emt 0:02:57]} Bxg5 {[%emt 0:00:31]} 24. hxg5 {[%emt 0:00:03]} g6 {[%emt 0:00:02]} 25. Qh4 {[%emt 0:01:44]} Qg7 {[%emt 0:00:34]} 26. Kf3 {[%emt 0:02:26]} Rc7 {[%emt 0:02:20]} 27. Bc1 {[%emt 0:01:33]} Rd7 {[%emt 0:04:02]} 28. Bd2 {[%emt 0:01:05]} Rc7 {[%emt 0:01:40]} 29. Bb4 {[%emt 0:00:36]} Rff7 {[%emt 0:00:39]} 30. Rh2 {[%emt 0:00:52]} Rc8 {[%emt 0:00:22]} 31. Rh1 {[%emt 0:32:24]} 1/2-1/2

[Event "AUT-ch U16-Open 2025"]
[Site "Fuerstenfeld"]
[Date "2025.04.14"]
[Round "3.4"]
[White "Guba, Viktor"]
[Black "Prober, Raphael"]
[Result "0-1"]
[Annotator "RC"]
[ECO "B22"]
[WhiteElo "1931"]
[BlackElo "2131"]
[PlyCount "46"]
[EventDate "2025.04.12"]
[EventType "swiss"]
[EventCountry "AUT"]
[SourceTitle "playchess.com"]
[Source "ChessBase"]
[SourceQuality "1"]
[TimeControl "5400+30"]

1. e4 {[%emt 0:00:04]} c5 {[%emt 0:00:07]} 2. c3 {[%emt 0:00:13]} d5 {[%emt 0:00:29]} 3. exd5 {[%emt 0:00:36]} Qxd5 {[%emt 0:00:09]} 4. d4 {[%emt 0:00:38]} Bf5 {[%emt 0:00:32]} 5. Nf3 {[%emt 0:01:15]} Nc6 {[%emt 0:00:07]} 6. Be3 {[%emt 0:06:26]} cxd4 {[%emt 0:00:26]} 7. cxd4 {[%emt 0:00:47]} Bxb1 {[%emt 0:00:39]} 8. Qxb1 {[%emt 0:04:19]} e5 {[%emt 1:32:01]} 9. dxe5 {[%emt 0:10:53]} Bb4+ {[%emt 0:00:00]} 10. Bd2 {[%emt 0:00:07]} Bxd2+ {[%emt 0:00:00]} 11. Nxd2 {[%emt 0:00:06]} O-O-O {[%emt 0:00:00]} 12. Nc4 {[%emt 0:09:52]} Nf6 {[%emt 0:00:00]} 13. Be2 {[%emt 0:11:07]} Nd4 {[%emt 0:00:00]} 14. Ne3 {[%emt 0:06:16]} Qa5+ {[%emt 0:00:00]} 15. b4 {[%emt 0:01:04]} Qxe5 {[%emt 0:00:00]} 16. Bd1 {[%emt 0:01:08]} h5 {[%emt 0:00:00]} 17. O-O {[%emt 0:03:33]} Ng4 {[%emt 0:00:00]} 18. Bxg4+ {[%emt 0:01:49]} hxg4 {[%emt 0:00:00]} 19. Nxg4 {[%emt 0:00:08]} Ne2+ {[%emt 0:00:00]} 20. Kh1 {[%emt 0:00:22]} Rxh2+ {[%emt 0:00:00]} 21. Nxh2 {[%emt 0:00:04]} Qxh2+ {[%emt 0:00:00]} 22. Kxh2 {[%emt 0:00:10]} Rh8+ {[%emt 0:00:00]} 23. Qh7 {[%emt 0:00:09]} Rxh7# {[%emt 0:00:00]} 0-1

[Event "AUT-ch U16-Open 2025"]
[Site "Fuerstenfeld"]
[Date "2025.04.14"]
[Round "3.5"]
[White "Brown, Julian"]
[Black "Nicolussi, Hieronymus"]
[Result "0-1"]
[Annotator "RC"]
[ECO "C06"]
[WhiteElo "1873"]
[BlackElo "1999"]
[PlyCount "80"]
[EventDate "2025.04.12"]
[EventType "swiss"]
[EventCountry "AUT"]
[SourceTitle "playchess.com"]
[Source "ChessBase"]
[SourceQuality "1"]
[TimeControl "5400+30"]

1. e4 {[%emt 0:00:01]} e6 {[%emt 0:00:07]} 2. d4 {[%emt 0:00:01]} d5 {[%emt 0:00:05]} 3. Nd2 {[%emt 0:00:02]} Nf6 {[%emt 0:00:06]} 4. e5 {[%emt 0:00:24]} Nfd7 {[%emt 0:00:09]} 5. Bd3 {[%emt 0:00:37]} c5 {[%emt 0:00:07]} 6. c3 {[%emt 0:00:42]} b6 {[%emt 0:00:07]} 7. Ne2 {[%emt 0:00:41]} Ba6 {[%emt 0:00:11]} 8. Bc2 {[%emt 0:00:17]} Nc6 {[%emt 0:01:06]} 9. Nf3 {[%emt 0:01:23]} cxd4 {[%emt 0:01:09]} 10. cxd4 {[%emt 0:00:42]} Bb4+ {[%emt 0:00:48]} 11. Bd2 {[%emt 0:00:06]} Bxd2+ {[%emt 0:00:44]} 12. Qxd2 {[%emt 0:00:02]} Qe7 {[%emt 0:00:09]} 13. a3 {[%emt 0:00:32]} Na5 {[%emt 0:00:33]} 14. b3 {[%emt 0:08:02]} Rc8 {[%emt 0:06:21]} 15. O-O {[%emt 0:02:41]} O-O {[%emt 0:01:08]} 16. b4 {[%emt 0:05:01]} Nc4 {[%emt 0:03:14]} 17. Qd3 {[%emt 0:00:56]} f5 {[%emt 0:03:38]} 18. Rfc1 {[%emt 0:08:40]} g5 {[%emt 0:13:44]} 19. h3 {[%emt 0:07:27]} Rf7 {[%emt 0:05:17]} 20. g3 {[%emt 0:06:41]} Nf8 {[%emt 0:07:43]} 21. a4 {[%emt 0:03:35]} g4 {[%emt 0:09:14]} 22. hxg4 {[%emt 0:00:26]} fxg4 {[%emt 0:01:26]} 23. Nh2 {[%emt 0:00:35]} Qg5 {[%emt 0:17:41]} 24. b5 {[%emt 0:02:41]} Bb7 {[%emt 0:00:15]} 25. Nf4 {[%emt 0:00:53]} h5 {[%emt 0:01:44]} 26. Qe2 {[%emt 0:03:34]} Rcc7 {[%emt 0:02:02]} 27. Bd3 {[%emt 0:07:53]} Rxf4 {[%emt 0:04:24]} 28. gxf4 {[%emt 0:01:14]} Qxf4 {[%emt 0:00:18]} 29. Bxc4 {[%emt 0:00:22]} dxc4 {[%emt 0:00:17]} 30. Qe3 {[%emt 0:00:10]} Qxe3 {[%emt 0:01:23]} 31. fxe3 {[%emt 0:00:03]} g3 {[%emt 0:04:17]} 32. Nf1 {[%emt 0:01:16]} h4 {[%emt 0:00:14]} 33. Re1 {[%emt 0:01:19]} Nh7 {[%emt 0:01:24]} 34. Nd2 {[%emt 0:15:05]} c3 {[%emt 0:01:17]} 35. Rec1 {[%emt 0:00:14]} Ng5 {[%emt 0:01:44]} 36. e4 {[%emt 0:00:44]} Rc8 {[%emt 0:03:14]} 37. Nf1 {[%emt 0:02:47]} Bxe4 {[%emt 0:00:31]} 38. Ne3 {[%emt 0:00:30]} h3 {[%emt 0:01:11]} 39. Ng4 {[%emt 0:00:25]} Nf3+ {[%emt 0:01:03]} 40. Kf1 {[%emt 0:01:17]} Bd3# {[%emt 0:00:07]} 0-1

[Event "AUT-ch U16-Open 2025"]
[Site "Fuerstenfeld"]
[Date "2025.04.14"]
[Round "3.6"]
[White "Pausweg, Daniel"]
[Black "Hellerschmid, Andreas"]
[Result "1-0"]
[Annotator "RC"]
[ECO "E09"]
[WhiteElo "2080"]
[BlackElo "1835"]
[PlyCount "107"]
[EventDate "2025.04.12"]
[EventType "swiss"]
[EventCountry "AUT"]
[SourceTitle "playchess.com"]
[Source "ChessBase"]
[SourceQuality "1"]
[TimeControl "5400+30"]

1. d4 {[%emt 0:00:03]} Nf6 {[%emt 0:00:07]} 2. c4 {[%emt 0:00:06]} e6 {[%emt 0:00:06]} 3. Nf3 {[%emt 0:00:09]} d5 {[%emt 0:00:07]} 4. g3 {[%emt 0:00:06]} Be7 {[%emt 0:00:06]} 5. Bg2 {[%emt 0:00:13]} O-O {[%emt 0:00:10]} 6. Nbd2 {[%emt 0:00:08]} c6 {[%emt 0:10:29]} 7. O-O {[%emt 0:00:17]} b6 {[%emt 0:02:21]} 8. b3 {[%emt 0:01:06]} Bb7 {[%emt 0:01:49]} 9. Bb2 {[%emt 0:00:49]} Nbd7 {[%emt 0:05:06]} 10. Qc2 {[%emt 0:03:56]} dxc4 {[%emt 0:05:32]} 11. Nxc4 {[%emt 0:00:53]} c5 {[%emt 0:03:58]} 12. Rad1 {[%emt 0:01:53]} Qc8 {[%emt 0:06:35]} 13. dxc5 {[%emt 0:02:14]} Bxc5 {[%emt 0:03:55]} 14. Qc1 {[%emt 0:10:26]} Qc7 {[%emt 0:03:56]} 15. Qa1 {[%emt 0:02:41]} Rac8 {[%emt 0:04:09]} 16. Rc1 {[%emt 0:06:41]} Qd8 {[%emt 0:02:54]} 17. Rfd1 {[%emt 0:03:02]} Qe7 {[%emt 0:02:48]} 18. a3 {[%emt 0:11:53]} a5 {[%emt 0:02:16]} 19. h3 {[%emt 0:02:07]} Rfd8 {[%emt 0:02:45]} 20. e3 {[%emt 0:02:27]} Rc7 {[%emt 0:09:42]} 21. g4 {[%emt 0:04:15]} Rdc8 {[%emt 0:02:20]} 22. Rd3 {[%emt 0:03:44]} h5 {[%emt 0:06:54]} 23. g5 {[%emt 0:00:50]} Ne8 {[%emt 0:00:12]} 24. h4 {[%emt 0:00:56]} f6 {[%emt 0:01:19]} 25. Rcd1 {[%emt 0:01:35]} e5 {[%emt 0:01:54]} 26. gxf6 {[%emt 0:04:19]} gxf6 {[%emt 0:00:08]} 27. Ncxe5 {[%emt 0:02:38]} Nxe5 {[%emt 0:01:35]} 28. Nxe5 {[%emt 0:01:31]} Bxg2 {[%emt 0:00:49]} 29. Kxg2 {[%emt 0:00:10]} fxe5 {[%emt 0:00:25]} 30. Bxe5 {[%emt 0:00:16]} Rc6 {[%emt 0:01:33]} 31. Rd7 {[%emt 0:03:19]} Qxh4 {[%emt 0:02:28]} 32. Bg3 {[%emt 0:01:01]} Qe4+ {[%emt 0:02:52]} 33. Kh2 {[%emt 0:00:08]} Nf6 {[%emt 0:01:19]} 34. b4 {[%emt 0:01:57]} Bf8 {[%emt 0:01:33]} 35. Qa2+ {[%emt 0:01:55]} Kh8 {[%emt 0:01:57]} 36. Qf7 {[%emt 0:02:45]} Ng4+ {[%emt 0:06:19]} 37. Kh3 {[%emt 0:01:32]} Qg6 {[%emt 0:00:20]} 38. Qd5 {[%emt 0:01:42]} Bg7 {[%emt 0:01:22]} 39. Rh1 {[%emt 0:01:17]} Rc2 {[%emt 0:00:40]} 40. Rf1 {[%emt 0:01:57]} Nxe3 {[%emt 0:01:06]} 41. Rxg7 {[%emt 0:01:47]} Qxg7 {[%emt 0:03:40]} 42. Qxh5+ {[%emt 0:00:22]} Kg8 {[%emt 0:00:10]} 43. fxe3 {[%emt 0:02:26]} Rf8 {[%emt 0:00:46]} 44. Qd5+ {[%emt 0:03:18]} Rf7 {[%emt 0:00:25]} 45. Rg1 {[%emt 0:02:18]} Rc8 {[%emt 0:01:23]} 46. Bh2 {[%emt 0:01:01]} Qxg1 {[%emt 0:00:17]} 47. Bxg1 {[%emt 0:00:21]} Rcf8 {[%emt 0:00:08]} 48. Bh2 {[%emt 0:00:38]} Kh7 {[%emt 0:00:47]} 49. Qe4+ {[%emt 0:01:15]} Rf5 {[%emt 0:00:27]} 50. Kg4 {[%emt 0:00:20]} Kg6 {[%emt 0:00:07]} 51. Bf4 {[%emt 0:00:28]} axb4 {[%emt 0:00:23]} 52. axb4 {[%emt 0:00:16]} R8f7 {[%emt 0:00:28]} 53. Bg5 {[%emt 0:01:03]} b5 {[%emt 0:00:11]} 54. Qe6+ {[%emt 0:00:18]} 1-0

[Event "AUT-ch U16-Open 2025"]
[Site "Fuerstenfeld"]
[Date "2025.04.14"]
[Round "3.7"]
[White "Wu, Chenshan"]
[Black "Geworgyan, Derenick"]
[Result "1-0"]
[Annotator "RC"]
[ECO "E39"]
[WhiteElo "2011"]
[BlackElo "1657"]
[PlyCount "99"]
[EventDate "2025.04.12"]
[EventType "swiss"]
[EventCountry "AUT"]
[SourceTitle "playchess.com"]
[Source "ChessBase"]
[SourceQuality "1"]
[TimeControl "5400+30"]

1. d4 {[%emt 0:00:02]} Nf6 {[%emt 0:00:04]} 2. c4 {[%emt 0:00:05]} e6 {[%emt 0:00:12]} 3. Nc3 {[%emt 0:00:06]} Bb4 {[%emt 0:00:06]} 4. Qc2 {[%emt 0:00:09]} c5 {[%emt 0:00:16]} 5. dxc5 {[%emt 0:00:05]} O-O {[%emt 0:00:08]} 6. Bg5 {[%emt 0:00:11]} Na6 {[%emt 0:00:04]} 7. a3 {[%emt 0:04:29]} Bxc3+ {[%emt 0:03:04]} 8. Qxc3 {[%emt 0:00:17]} Nxc5 {[%emt 0:00:04]} 9. Bxf6 {[%emt 0:08:35]} Qxf6 {[%emt 0:00:12]} 10. Qxf6 {[%emt 0:00:07]} gxf6 {[%emt 0:00:02]} 11. b4 {[%emt 0:02:04]} Na6 {[%emt 0:01:24]} 12. e3 {[%emt 0:04:18]} b6 {[%emt 0:00:14]} 13. O-O-O {[%emt 0:05:13]} Rd8 {[%emt 0:00:23]} 14. Nf3 {[%emt 0:02:05]} Bb7 {[%emt 0:03:04]} 15. Be2 {[%emt 0:02:43]} Nc7 {[%emt 0:09:16]} 16. Rd6 {[%emt 0:11:32]} Kf8 {[%emt 0:04:02]} 17. Rhd1 {[%emt 0:07:16]} Ke7 {[%emt 0:03:16]} 18. Kb2 {[%emt 0:05:45]} Rac8 {[%emt 0:04:11]} 19. R6d2 {[%emt 0:05:36]} d5 {[%emt 0:01:48]} 20. cxd5 {[%emt 0:17:56]} Bxd5 {[%emt 0:02:29]} 21. g3 {[%emt 0:04:54]} Ne8 {[%emt 0:02:47]} 22. Nd4 {[%emt 0:00:50]} Nd6 {[%emt 0:00:30]} 23. Bd3 {[%emt 0:01:14]} Be4 {[%emt 0:05:09]} 24. Bxe4 {[%emt 0:01:01]} Nc4+ {[%emt 0:02:27]} 25. Kb3 {[%emt 0:01:23]} Nxd2+ {[%emt 0:00:35]} 26. Rxd2 {[%emt 0:00:11]} Kf8 {[%emt 0:01:55]} 27. Rc2 {[%emt 0:02:31]} Kg7 {[%emt 0:03:48]} 28. b5 {[%emt 0:02:43]} Kf8 {[%emt 0:02:42]} 29. Rxc8 {[%emt 0:04:00]} Rxc8 {[%emt 0:00:12]} 30. Nc6 {[%emt 0:00:14]} Rc7 {[%emt 0:00:41]} 31. Kc2 {[%emt 0:02:49]} Ke8 {[%emt 0:00:39]} 32. Kd3 {[%emt 0:02:06]} Kd7 {[%emt 0:02:15]} 33. Bxh7 {[%emt 0:01:56]} f5 {[%emt 0:01:49]} 34. e4 {[%emt 0:00:16]} fxe4+ {[%emt 0:01:29]} 35. Bxe4 {[%emt 0:00:13]} f5 {[%emt 0:00:32]} 36. Bf3 {[%emt 0:00:30]} Kd6 {[%emt 0:00:24]} 37. Kd4 {[%emt 0:01:12]} Rh7 {[%emt 0:02:09]} 38. h4 {[%emt 0:00:17]} Rc7 {[%emt 0:00:09]} 39. a4 {[%emt 0:00:55]} Rh7 {[%emt 0:02:06]} 40. Be2 {[%emt 0:01:03]} Rg7 {[%emt 0:00:22]} 41. Bh5 {[%emt 0:00:18]} Rh7 {[%emt 0:00:55]} 42. Bg6 {[%emt 0:00:25]} Rg7 {[%emt 0:02:05]} 43. h5 {[%emt 0:00:11]} a5 {[%emt 0:00:04]} 44. Ne5 {[%emt 0:00:43]} Ke7 {[%emt 0:00:26]} 45. h6 {[%emt 0:00:09]} Rg8 {[%emt 0:00:51]} 46. h7 {[%emt 0:00:07]} Rd8+ {[%emt 0:00:56]} 47. Ke3 {[%emt 0:00:12]} Kf6 {[%emt 0:04:42]} 48. Nf7 {[%emt 0:00:11]} Kxg6 {[%emt 0:01:20]} 49. Nxd8 {[%emt 0:00:12]} Kxh7 {[%emt 0:00:12]} 50. Nxe6 {[%emt 0:00:07]} 1-0

[Event "AUT-ch U16-Open 2025"]
[Site "Fuerstenfeld"]
[Date "2025.04.14"]
[Round "3.8"]
[White "Gruenwald, Beat"]
[Black "Taizhanov, Aissultan"]
[Result "1-0"]
[Annotator "RC"]
[ECO "B32"]
[WhiteElo "1727"]
[BlackElo "1952"]
[PlyCount "47"]
[EventDate "2025.04.12"]
[EventType "swiss"]
[EventCountry "AUT"]
[SourceTitle "playchess.com"]
[Source "ChessBase"]
[SourceQuality "1"]
[TimeControl "5400+30"]

1. e4 {[%emt 0:00:03]} c5 {[%emt 0:00:08]} 2. Nf3 {[%emt 0:00:05]} Nc6 {[%emt 0:00:08]} 3. d4 {[%emt 0:00:09]} cxd4 {[%emt 0:00:04]} 4. Nxd4 {[%emt 0:00:04]} e5 {[%emt 0:00:04]} 5. Nb5 {[%emt 0:00:53]} d6 {[%emt 0:00:13]} 6. N1c3 {[%emt 0:01:28]} a6 {[%emt 0:01:11]} 7. Na3 {[%emt 0:00:12]} Be6 {[%emt 0:00:07]} 8. Nc4 {[%emt 0:04:08]} b5 {[%emt 0:00:08]} 9. Ne3 {[%emt 0:00:07]} Nf6 {[%emt 0:00:09]} 10. Ned5 {[%emt 0:06:35]} b4 {[%emt 0:08:26]} 11. Nxf6+ {[%emt 0:01:27]} Qxf6 {[%emt 0:00:25]} 12. Nd5 {[%emt 0:01:46]} Bxd5 {[%emt 0:01:06]} 13. Qxd5 {[%emt 0:00:18]} Rc8 {[%emt 0:12:58]} 14. Bxa6 {[%emt 0:05:28]} Rc7 {[%emt 0:03:16]} 15. Bb5 {[%emt 0:03:28]} Kd7 {[%emt 0:00:38]} 16. Bd2 {[%emt 0:10:28]} Be7 {[%emt 0:02:56]} 17. Bxb4 {[%emt 0:03:27]} Rb8 {[%emt 0:05:05]} 18. Bxc6+ {[%emt 0:02:51]} Rxc6 {[%emt 0:00:33]} 19. c3 {[%emt 0:01:13]} Qf4 {[%emt 0:02:27]} 20. O-O {[%emt 0:03:51]} h5 {[%emt 0:00:16]} 21. Qd3 {[%emt 0:06:24]} g5 {[%emt 0:01:25]} 22. Qf3 {[%emt 0:04:05]} Qd2 {[%emt 0:06:12]} 23. Rab1 {[%emt 0:04:19]} Rc4 {[%emt 0:03:05]} 24. Qxf7 {[%emt 0:07:42]} 1-0